bitfinex/quotes_BTCUSD_20251004
["timestamp","ask_amount","ask_price","bid_price","bid_amount"]
[1759537254243,0.01749171,122210.0,122200.0,5.23940315]
[1759537256595,0.02240171,122210.0,122200.0,0.26167409]
[1759537256798,0.02240171,122210.0,122200.0,1.15946612]
[1759537257161,0.02280967,122210.0,122190.0,0.07345983]
[1759537257381,0.02280967,122210.0,122200.0,0.14375944]
[1759537257382,0.71597393,122210.0,122200.0,0.14375944]
[1759537257580,0.16366612,122200.0,122190.0,0.05875944]
[1759537257787,0.16660612,122200.0,122190.0,0.05875944]
[1759537257994,0.16857612,122200.0,122190.0,0.31564]
[1759537258450,0.16857612,122200.0,122180.0,0.91130313]
[1759537258451,0.16367951,122190.0,122180.0,0.91130313]
[1759537258606,0.16367951,122190.0,122180.0,0.88694313]
[1759537258607,0.16564951,122190.0,122180.0,0.88694313]
[1759537258812,0.16858951,122190.0,122180.0,1.22694313]
[1759537259263,0.16858951,122190.0,122180.0,1.22698313]
[1759537259612,0.16858951,122190.0,122180.0,0.57318313]
[1759537259808,0.00491,122190.0,122180.0,1.22898313]
[1759537260676,0.16858951,122190.0,122180.0,0.99834775]
[1759537260813,0.16858951,122190.0,122180.0,0.99842775]
[1759537261022,0.16858951,122190.0,122180.0,1.2208801]
[1759537261389,0.16858951,122190.0,122180.0,1.16412066]
[1759537264200,0.16858951,122190.0,122180.0,1.20813225]
[1759537265227,0.00491,122190.0,122180.0,1.20813225]
[1759537267988,0.00197,122190.0,122180.0,1.20813225]
[1759537268499,0.18743838,122200.0,122180.0,1.16412066]
[1759537268694,0.16698012,122200.0,122190.0,0.27465779]
[1759537268898,0.16898012,122200.0,122190.0,0.27465779]
[1759537270407,0.16998012,122200.0,122190.0,0.23068]
[1759537271370,0.001204,122200.0,122190.0,0.4383373]
[1759537271623,0.001204,122200.0,122190.0,0.46304825]
[1759537272784,0.001204,122200.0,122190.0,0.4383373]
[1759537278526,0.001204,122200.0,122190.0,5.19845294]
[1759537282964,0.001204,122200.0,122190.0,5.22281556]
[1759537283682,0.001204,122200.0,122190.0,5.29627539]
[1759537288955,0.001204,122200.0,122190.0,5.3067671]
[1759537293600,0.001204,122200.0,122190.0,5.36745953]
[1759537295088,0.001204,122200.0,122190.0,5.68286858]
[1759537295272,0.001204,122200.0,122190.0,5.76790858]
[1759537296089,0.001204,122200.0,122190.0,5.11206858]
[1759537296239,0.001204,122200.0,122190.0,5.76790858]
[1759537297482,0.001204,122200.0,122190.0,5.68286858]
[1759537297684,0.001204,122200.0,122190.0,5.76790858]
[1759537301084,0.001204,122200.0,122190.0,5.48951024]
[1759537301440,0.001204,122200.0,122190.0,5.65318975]
[1759537301688,0.001204,122200.0,122190.0,5.71190751]
[1759537302317,0.001204,122200.0,122190.0,5.65318975]
[1759537307385,0.001204,122200.0,122190.0,5.6779007]
[1759537307586,0.001204,122200.0,122190.0,5.0220607]
[1759537307799,0.001204,122200.0,122190.0,5.6778207]
[1759537308475,0.001204,122200.0,122190.0,5.0220607]
[1759537308812,0.006294,122200.0,122190.0,5.65310975]
[1759537309008,0.003214,122200.0,122190.0,5.65310975]
[1759537309311,0.001204,122200.0,122190.0,5.65310975]
[1759537311030,0.00014008,122200.0,122190.0,5.65310975]
[1759537311446,0.00014008,122200.0,122190.0,5.75595352]
[1759537311870,0.00014008,122200.0,122190.0,5.78066447]
[1759537314746,0.00014008,122200.0,122190.0,5.77017276]
[1759537321102,1.634e-05,122200.0,122190.0,5.77017276]
[1759537321507,1.634e-05,122200.0,122190.0,5.80032466]
[1759537323032,1.634e-05,122200.0,122190.0,6.10032466]
[1759537329171,1.634e-05,122200.0,122190.0,5.44456466]
[1759537329389,1.634e-05,122200.0,122190.0,6.10028466]
[1759537329659,1.634e-05,122200.0,122190.0,5.67516466]
[1759537329834,1.634e-05,122200.0,122190.0,6.10028466]
[1759537330242,1.634e-05,122200.0,122190.0,5.65045371]
[1759537330444,1.634e-05,122200.0,122190.0,6.07557371]
[1759537331072,0.01049171,122210.0,122200.0,0.50366612]
[1759537331278,0.01049171,122210.0,122200.0,5.08840566]
[1759537331884,0.01069568,122210.0,122200.0,5.08840566]
[1759537333284,0.02178568,122210.0,122200.0,5.08840566]
[1759537333469,0.01868568,122210.0,122200.0,5.08840566]
[1759537333676,0.01669568,122210.0,122200.0,5.08840566]
[1759537334907,0.01868568,122210.0,122200.0,5.08840566]
[1759537335115,0.01669568,122210.0,122200.0,5.08840566]
[1759537338984,0.01669568,122210.0,122200.0,4.85780566]
[1759537339143,0.02178568,122210.0,122200.0,5.51352566]
[1759537339412,0.01669568,122210.0,122200.0,5.51352566]
[1759537343482,0.01868568,122210.0,122200.0,5.51352566]
[1759537343827,0.01669568,122210.0,122200.0,5.51352566]
[1759537344269,0.01669568,122210.0,122200.0,5.3845519]
[1759537344416,0.01669568,122210.0,122200.0,5.47466854]
[1759537344614,0.01868568,122210.0,122200.0,4.81894854]
[1759537344830,0.02178568,122210.0,122200.0,5.47466854]
[1759537345554,0.02178568,122210.0,122200.0,4.81894854]
[1759537345760,0.01868568,122210.0,122200.0,5.47466854]
[1759537345959,0.01669568,122210.0,122200.0,5.47466854]
[1759537352106,0.01880568,122210.0,122200.0,5.47466854]
[1759537353394,0.02204568,122210.0,122200.0,5.47466854]
[1759537353608,0.01669568,122210.0,122200.0,5.47466854]
[1759537354173,0.01669568,122210.0,122200.0,5.48937376]
[1759537361213,0.01669568,122210.0,122200.0,5.40437376]
[1759537361388,0.01669568,122210.0,122200.0,5.48937376]
[1759537363284,0.01880568,122210.0,122200.0,5.48937376]
[1759537363486,0.01669568,122210.0,122200.0,5.51428834]
[1759537364237,0.0019654,122210.0,122200.0,5.51428834]
[1759537365002,0.0019654,122210.0,122200.0,4.85856834]
[1759537365218,0.0019654,122210.0,122200.0,5.51428834]
[1759537365955,0.0019654,122210.0,122200.0,4.85856834]
[1759537366174,0.0019654,122210.0,122200.0,5.54444024]
[1759537366989,0.0019654,122210.0,122200.0,5.5552522]
[1759537367216,0.0019654,122210.0,122200.0,5.48170272]
[1759537367423,0.0019654,122210.0,122200.0,5.58454649]
[1759537367883,0.01081196,122230.0,122220.0,0.50363933]
[1759537368110,0.0108611,122230.0,122220.0,0.58676139]
[1759537368318,0.0108611,122230.0,122220.0,1.24244139]
[1759537368524,0.01126896,122230.0,122220.0,1.24244139]
[1759537368725,0.01126896,122230.0,122220.0,1.26735597]
[1759537369253,0.01626896,122230.0,122220.0,1.26735597]
[1759537369940,0.02026896,122230.0,122220.0,1.26735597]
[1759537371832,0.02026896,122230.0,122220.0,5.46482397]
[1759537372032,0.02026896,122230.0,122220.0,5.03970397]
[1759537372290,0.02026896,122230.0,122220.0,5.46482397]
[1759537372670,0.02026896,122230.0,122220.0,5.37982397]
[1759537372880,0.02026896,122230.0,122220.0,5.46482397]
[1759537373260,0.02026896,122230.0,122220.0,5.52355592]
[1759537374340,0.02026896,122230.0,122220.0,5.46482397]
[1759537380314,0.02026896,122230.0,122220.0,5.43990939]
[1759537382631,0.02026896,122230.0,122220.0,5.73990939]
[1759537382985,0.02026896,122230.0,122220.0,5.79493587]
[1759537383187,0.02026896,122230.0,122220.0,5.89299245]
[1759537383482,0.02026896,122230.0,122220.0,5.23735245]
[1759537383639,0.02026896,122230.0,122220.0,5.89299245]
[1759537383835,0.01526896,122230.0,122220.0,5.89299245]
[1759537384405,0.01726896,122230.0,122220.0,5.89299245]
[1759537384796,0.01326896,122230.0,122220.0,5.89299245]
[1759537385261,0.01526896,122230.0,122220.0,5.23735245]
[1759537385724,0.01526896,122230.0,122220.0,5.89299245]
[1759537386602,0.01526896,122230.0,122220.0,5.44295787]
[1759537386801,0.01526896,122230.0,122220.0,5.86803787]
[1759537389791,0.01526896,122230.0,122220.0,5.21243787]
[1759537390207,0.01526896,122230.0,122220.0,5.86803787]
[1759537391800,0.01526896,122230.0,122220.0,5.79452382]
[1759537393255,0.00166033,122230.0,122220.0,5.86792785]
[1759537394205,0.00166033,122230.0,122220.0,5.79452382]
[1759537394397,0.00166033,122230.0,122220.0,5.86793338]
[1759537397133,0.00166033,122230.0,122220.0,5.86796579]
[1759537397348,0.00166033,122230.0,122220.0,5.79452382]
[1759537403116,0.00018613,122230.0,122220.0,5.79452382]
[1759537403943,0.00018613,122230.0,122220.0,5.82052173]
[1759537405598,0.00018613,122230.0,122220.0,5.39544173]
[1759537405772,0.00018613,122230.0,122220.0,5.82052173]
[1759537407330,0.00018613,122230.0,122220.0,5.9233655]
[1759537413207,2.094e-05,122230.0,122220.0,5.9233655]
[1759537413407,2.094e-05,122230.0,122220.0,5.9232855]
[1759537420449,2.094e-05,122230.0,122220.0,5.96273503]
[1759537420683,2.094e-05,122230.0,122220.0,5.85989126]
[1759537430543,0.0002,122240.0,122230.0,0.30552199]
[1759537430703,0.0002,122240.0,122230.0,4.89012205]
[1759537431270,0.0002,122240.0,122230.0,4.8933943]
[1759537431898,0.0032,122240.0,122230.0,5.3184343]
[1759537432098,0.0062,122240.0,122230.0,4.6629143]
[1759537432300,0.0062,122240.0,122230.0,5.3184343]
[1759537433054,0.0062,122240.0,122230.0,4.6629143]
[1759537433212,0.0062,122240.0,122230.0,5.3184343]
[1759537433838,0.0062,122240.0,122230.0,4.6629143]
[1759537434033,0.01149,122240.0,122230.0,4.6629143]
[1759537434238,0.01149,122240.0,122230.0,5.3184343]
[1759537434392,0.00836,122240.0,122230.0,5.37870193]
[1759537434599,0.0062,122240.0,122230.0,5.37870193]
[1759537436010,0.0064039,122240.0,122230.0,5.37870193]
[1759537436641,0.0064039,122240.0,122230.0,4.72318193]
[1759537436925,0.0064039,122240.0,122230.0,5.37866193]
[1759537438083,0.0085639,122240.0,122230.0,5.37866193]
[1759537438289,0.0116939,122240.0,122230.0,5.37866193]
[1759537438587,0.0064039,122240.0,122230.0,5.30513193]
[1759537438875,0.0064039,122240.0,122230.0,5.37866864]
[1759537440490,0.0116639,122240.0,122230.0,5.37866864]
[1759537440614,0.00288467,122240.0,122230.0,5.30513193]
[1759537440803,0.00072467,122240.0,122230.0,5.4079757]
[1759537441675,0.00072467,122240.0,122230.0,5.46411777]
[1759537442127,0.00072467,122240.0,122230.0,5.361274]
[1759537442927,0.0002039,122240.0,122230.0,5.361274]
[1759537443853,0.0002039,122240.0,122230.0,5.362274]
[1759537444513,0.0002039,122240.0,122230.0,5.46511777]
[1759537450579,2.251e-05,122240.0,122230.0,5.46511777]
[1759537454859,2.251e-05,122240.0,122230.0,4.80963777]
[1759537455070,2.251e-05,122240.0,122230.0,5.46511777]
[1759537459554,2.251e-05,122240.0,122230.0,4.80963777]
[1759537459772,2.251e-05,122240.0,122230.0,5.46511777]
[1759537460738,0.0033,122260.0,122250.0,0.50359918]
[1759537460933,0.0002,122260.0,122250.0,0.79281643]
[1759537461109,0.00541,122260.0,122250.0,0.79281643]
[1759537461316,0.00581771,122260.0,122250.0,0.79281643]
[1759537461907,0.01181771,122260.0,122250.0,0.79281643]
[1759537462306,0.01381771,122260.0,122250.0,0.79281643]
[1759537462514,0.01381771,122260.0,122250.0,0.58346719]
[1759537462713,0.01381771,122260.0,122250.0,1.23894719]
[1759537464081,0.01381771,122260.0,122250.0,0.58346719]
[1759537464291,0.01381771,122260.0,122250.0,1.23894719]
[1759537465112,0.01381771,122260.0,122250.0,0.58346719]
[1759537465295,0.01381771,122260.0,122250.0,1.23894719]
[1759537465502,0.01381771,122260.0,122250.0,0.58346719]
[1759537465715,0.01381771,122260.0,122250.0,1.23894719]
[1759537469788,0.01381771,122260.0,122250.0,0.58346719]
[1759537469989,0.01381771,122260.0,122250.0,1.23890719]
[1759537486448,0.01381771,122260.0,122250.0,1.18012994]
[1759537489144,0.00860771,122260.0,122250.0,1.18012994]
[1759537493407,0.00860771,122260.0,122250.0,1.263252]
[1759537493613,0.00860771,122260.0,122250.0,1.36271373]
[1759537493838,0.00860771,122260.0,122250.0,1.38725233]
[1759537494447,0.00260771,122260.0,122250.0,1.38725233]
[1759537494630,0.00060771,122260.0,122250.0,1.38725233]
[1759537494807,0.00560771,122260.0,122250.0,1.38725233]
[1759537495416,0.00560771,122260.0,122250.0,1.52914837]
[1759537498128,0.00775771,122260.0,122250.0,0.64869027]
[1759537498297,0.01082771,122260.0,122250.0,1.2781401]
[1759537498702,0.01075294,122260.0,122250.0,1.2781401]
[1759537501417,0.01083332,122260.0,122250.0,1.2781401]
[1759537501777,0.00776332,122260.0,122250.0,1.2781401]
[1759537502179,0.00776332,122260.0,122250.0,0.6227001]
[1759537502389,0.01089332,122260.0,122250.0,1.2780601]
[1759537502747,0.01089332,122260.0,122250.0,0.6227001]
[1759537502923,0.01089332,122260.0,122250.0,1.20458854]
[1759537504176,0.01089332,122260.0,122250.0,0.54922854]
[1759537504356,0.01089332,122260.0,122250.0,1.20458854]
[1759537504717,0.01089332,122260.0,122250.0,1.11958854]
[1759537504925,0.01089332,122260.0,122250.0,1.20458854]
[1759537505127,0.17447912,122260.0,122250.0,0.3645386]
[1759537505353,0.19492734,122260.0,122250.0,1.13273869]
[1759537505716,0.17447912,122260.0,122250.0,1.21773869]
[1759537505963,0.17447912,122260.0,122250.0,0.05877951]
[1759537506173,0.25760118,122260.0,122250.0,0.37413951]
[1759537506377,0.2821466,122260.0,122250.0,0.14377951]
[1759537506588,0.16359918,122250.0,122240.0,0.05877951]
[1759537506794,0.16359918,122250.0,122240.0,0.71413951]
[1759537506795,0.16564918,122250.0,122240.0,0.71413951]
[1759537507002,0.16877918,122250.0,122240.0,0.71413951]
[1759537507408,0.1933246,122250.0,122240.0,0.71413951]
[1759537508038,0.1933246,122250.0,122240.0,0.71513951]
[1759537508518,0.1933246,122250.0,122240.0,0.65636]
[1759537508720,0.1933246,122250.0,122240.0,0.426]
[1759537508949,0.1933246,122250.0,122240.0,0.65636]
[1759537511302,0.1933246,122250.0,122240.0,0.70040767]
[1759537512137,0.19352847,122250.0,122240.0,0.70040767]
[1759537514161,0.19352847,122250.0,122240.0,0.38504767]
[1759537514360,0.19352847,122250.0,122240.0,0.70044767]
[1759537514821,0.19352847,122250.0,122240.0,0.36044767]
[1759537515286,0.19352847,122250.0,122240.0,0.3164]
[1759537518460,0.27665053,122250.0,122240.0,0.001]
[1759537518669,0.27665053,122250.0,122240.0,0.3164]
[1759537523379,0.27665053,122250.0,122240.0,0.001]
[1759537523542,0.27665053,122250.0,122240.0,0.3164]
[1759537527183,0.27665053,122250.0,122240.0,0.001]
[1759537527401,0.27665053,122250.0,122240.0,0.3164]
[1759537529699,0.27665053,122250.0,122240.0,0.001]
[1759537529927,0.27665053,122250.0,122240.0,0.3164]
[1759537533902,0.27665053,122250.0,122240.0,0.2314]
[1759537534223,0.27665053,122250.0,122240.0,0.3164]
[1759537539191,0.16362595,122230.0,122220.0,0.39233149]
[1759537539392,0.16578595,122230.0,122220.0,0.47733149]
[1759537539659,0.16899595,122230.0,122220.0,0.47733149]
[1759537539938,0.19354527,122230.0,122220.0,0.43326196]
[1759537540455,0.18817527,122230.0,122220.0,0.66866196]
[1759537540587,0.19354527,122230.0,122220.0,0.66866196]
[1759537541738,0.19033527,122230.0,122220.0,0.68445585]
[1759537541987,0.19354527,122230.0,122220.0,0.68445585]
[1759537542549,0.19354527,122230.0,122220.0,0.66648]
[1759537542961,0.19354527,122230.0,122220.0,0.68532738]
[1759537544561,0.19354527,122230.0,122220.0,0.02984738]
[1759537544793,0.19354527,122230.0,122220.0,0.68553133]
[1759537545789,0.19354527,122230.0,122220.0,0.66668395]
[1759537546409,0.19354527,122230.0,122220.0,0.01120395]
[1759537546643,0.19354527,122230.0,122220.0,0.66668395]
[1759537546961,0.19354527,122230.0,122220.0,0.43628395]
[1759537547098,0.19354527,122230.0,122220.0,0.66668395]
[1759537547955,0.19354527,122230.0,122220.0,0.01120395]
[1759537548157,0.19354527,122230.0,122220.0,0.66668395]
[1759537549798,0.19354527,122230.0,122220.0,0.32660395]
[1759537553689,0.27666733,122230.0,122220.0,0.01120395]
[1759537553911,0.27666733,122230.0,122220.0,0.32660395]
[1759537554122,0.32075007,122230.0,122220.0,0.01120395]
[1759537554347,0.27666733,122230.0,122220.0,0.15460395]
[1759537554569,0.27666733,122230.0,122220.0,0.26920395]
[1759537554997,0.27666733,122230.0,122220.0,0.26320395]
[1759537555435,0.27666733,122230.0,122220.0,0.26420395]
[1759537555660,0.27666733,122230.0,122220.0,0.26320395]
[1759537556089,0.27966733,122230.0,122220.0,0.25820395]
[1759537556756,0.28266733,122230.0,122220.0,0.00020395]
[1759537557001,0.28266733,122230.0,122220.0,0.29804395]
[1759537557224,0.28266733,122230.0,122220.0,0.00020395]
[1759537557445,0.28266733,122230.0,122220.0,0.31568395]
[1759537560366,0.27729733,122230.0,122220.0,0.31568395]
[1759537561071,0.27937733,122230.0,122220.0,0.31568395]
[1759537562843,0.27937733,122230.0,122220.0,0.00020395]
[1759537563080,0.28231733,122230.0,122220.0,0.00020395]
[1759537563288,0.28231733,122230.0,122220.0,0.12156395]
[1759537566151,0.28231733,122230.0,122220.0,0.10260395]
[1759537566360,0.28231733,122230.0,122220.0,0.18764395]
[1759537567467,0.28231733,122230.0,122220.0,0.08524395]
[1759537567667,0.28231733,122230.0,122220.0,0.24136395]
[1759537571396,0.16368263,122190.0,122170.0,0.19632615]
[1759537571596,0.16368263,122190.0,122180.0,4.78635921]
[1759537571789,0.16368263,122190.0,122180.0,0.58889121]
[1759537572603,0.16368263,122190.0,122180.0,0.82002292]
[1759537572820,0.16368263,122190.0,122180.0,0.82820756]
[1759537572992,0.16368263,122190.0,122180.0,0.84448909]
[1759537573196,0.16368263,122190.0,122180.0,0.85248909]
[1759537574255,0.16368263,122190.0,122180.0,0.86048909]
[1759537577105,0.16368263,122190.0,122180.0,0.86130516]
[1759537581289,0.16870263,122190.0,122180.0,0.68942931]
[1759537581569,0.16368263,122190.0,122180.0,0.03358931]
[1759537581989,0.16870263,122190.0,122180.0,0.44254778]
[1759537582147,0.16870263,122190.0,122180.0,0.71720582]
[1759537583402,0.16870263,122190.0,122180.0,0.48660582]
[1759537583608,0.16870263,122190.0,122180.0,0.71724582]
[1759537587618,0.16576263,122190.0,122180.0,0.71724582]
[1759537588581,0.16368263,122190.0,122180.0,0.71724582]
[1759537590226,0.16563263,122190.0,122180.0,0.71724582]
[1759537591032,0.16869263,122190.0,122180.0,0.71724582]
[1759537591517,0.16869263,122190.0,122180.0,0.48660582]
[1759537591734,0.16869263,122190.0,122180.0,0.71724582]
[1759537598528,0.16869263,122190.0,122180.0,0.63216582]
[1759537598709,0.16869263,122190.0,122180.0,0.71720582]
[1759537599124,0.19325057,122190.0,122180.0,0.71720582]
[1759537600336,0.19325057,122190.0,122180.0,0.06136582]
[1759537600536,0.19325057,122190.0,122180.0,0.71720582]
[1759537603720,0.19325057,122190.0,122180.0,0.06136582]
[1759537603873,0.19325057,122190.0,122180.0,0.37696582]
[1759537604755,0.27637263,122190.0,122180.0,0.06136582]
[1759537604980,0.27637263,122190.0,122180.0,0.30528582]
[1759537605819,0.27637263,122190.0,122180.0,0.26122778]
[1759537605960,0.27637263,122190.0,122180.0,0.24522778]
[1759537606370,0.27637263,122190.0,122180.0,0.25622778]
[1759537606780,0.27637263,122190.0,122180.0,0.01230778]
[1759537607166,0.27637263,122190.0,122180.0,0.19150778]
[1759537612603,0.27637263,122190.0,122180.0,0.01230778]
[1759537612809,0.27637263,122190.0,122180.0,0.19070778]
[1759537614618,0.27637263,122190.0,122180.0,0.01230778]
[1759537614789,0.27637263,122190.0,122180.0,0.32798778]
[1759537615981,0.27637263,122190.0,122180.0,0.32298778]
[1759537616165,0.27637263,122190.0,122180.0,0.31698778]
[1759537616385,0.27637263,122190.0,122180.0,0.32198778]
[1759537616800,0.27135951,122190.0,122180.0,0.32198778]
[1759537617239,0.27636951,122190.0,122180.0,0.32198778]
[1759537617641,0.27636951,122190.0,122180.0,0.31698778]
[1759537625690,0.61636951,122190.0,122180.0,0.31694778]
[1759537626954,0.61636951,122190.0,122180.0,0.00130778]
[1759537627264,0.61636951,122190.0,122180.0,0.31694778]
[1759537627723,0.61636951,122190.0,122180.0,0.23190778]
[1759537627971,0.61636951,122190.0,122180.0,0.31694778]
[1759537631884,0.61636951,122190.0,122180.0,0.00130778]
[1759537632107,0.61636951,122190.0,122180.0,0.31694778]
[1759537633411,0.61636951,122190.0,122180.0,0.00130778]
[1759537633611,0.61636951,122190.0,122180.0,0.31694778]
[1759537637357,0.61636951,122190.0,122180.0,0.31690778]
[1759537640867,0.61636951,122190.0,122180.0,0.23186778]
[1759537641064,0.61636951,122190.0,122180.0,0.31690778]
[1759537647669,0.61636951,122190.0,122180.0,0.23186778]
[1759537647816,0.61636951,122190.0,122180.0,0.31690778]
[1759537650943,0.61636951,122190.0,122180.0,0.08634778]
[1759537651146,0.70058358,122190.0,122180.0,0.31690778]
[1759537651483,0.70058358,122190.0,122180.0,0.00130778]
[1759537651684,0.70058358,122190.0,122180.0,0.31690778]
[1759537651881,0.73073548,122190.0,122180.0,0.08634778]
[1759537652130,0.83073548,122190.0,122180.0,0.00130778]
[1759537652467,0.83837637,122190.0,122180.0,0.03670778]
[1759537652672,0.7541623,122190.0,122180.0,0.03670778]
[1759537653114,0.7541623,122190.0,122180.0,0.00130778]
[1759537653237,0.7541623,122190.0,122180.0,0.10206778]
[1759537655327,0.7240104,122190.0,122180.0,0.10206778]
[1759537655909,0.71636951,122190.0,122180.0,0.10206778]
[1759537657292,0.61636951,122190.0,122180.0,0.10206778]
[1759537657517,0.71636951,122190.0,122180.0,0.10206778]
[1759537658354,0.61636951,122190.0,122180.0,0.10206778]
[1759537658557,0.71636951,122190.0,122180.0,0.10206778]
[1759537660025,0.61135951,122190.0,122180.0,0.10206778]
[1759537660476,0.61342951,122190.0,122180.0,0.10206778]
[1759537660976,0.61653951,122190.0,122180.0,0.10206778]
[1759537661149,0.61135951,122190.0,122180.0,0.10206778]
[1759537661576,0.27135951,122190.0,122180.0,0.10206778]
[1759537663985,0.10768,122190.0,122180.0,0.10206778]
[1759537664123,0.12813993,122190.0,122180.0,0.10206778]
[1759537664321,0.29181944,122190.0,122180.0,0.10206778]
[1759537664529,0.27135951,122190.0,122180.0,0.10206778]
[1759537665416,0.10768,122190.0,122180.0,0.10206778]
[1759537665607,0.12813993,122190.0,122180.0,0.10206778]
[1759537666063,0.17184671,122210.0,122180.0,0.30981873]
[1759537666270,0.10358032,122200.0,122180.0,0.30900266]
[1759537666475,0.12813748,122200.0,122180.0,0.30900266]
[1759537669697,0.12813748,122200.0,122190.0,0.04405804]
[1759537669898,0.10767922,122200.0,122190.0,0.04405804]
[1759537670759,0.10767922,122200.0,122180.0,0.30900266]
[1759537670970,0.13113748,122200.0,122190.0,0.04405804]
[1759537671170,0.003,122200.0,122190.0,0.20773755]
[1759537671596,0.006,122200.0,122190.0,0.20773755]
[1759537671816,0.003,122200.0,122190.0,0.20773755]
[1759537672028,0.04501254,122210.0,122190.0,0.20773755]
[1759537672257,0.1281346,122210.0,122200.0,0.31564]
[1759537672480,0.1333146,122210.0,122200.0,0.31564]
[1759537673399,0.29696813,122210.0,122200.0,0.31564]
[1759537673603,0.27651154,122210.0,122200.0,0.31564]
[1759537674024,0.27651154,122210.0,122200.0,0.08504]
[1759537674706,0.11585801,122210.0,122190.0,0.16367911]
[1759537674924,0.11885801,122210.0,122200.0,0.08504]
[1759537675153,0.11885801,122210.0,122200.0,0.2306]
[1759537675377,0.11885801,122210.0,122200.0,0.31564]
[1759537675803,0.11285801,122210.0,122200.0,0.31564]
[1759537676927,0.1333146,122210.0,122200.0,0.31564]
[1759537677589,0.1363146,122210.0,122200.0,0.31564]
[1759537677800,0.1363146,122210.0,122200.0,0.31604797]
[1759537678212,0.1393146,122210.0,122200.0,0.31604797]
[1759537680021,0.30296732,122210.0,122200.0,0.31604797]
[1759537680250,0.28251073,122210.0,122200.0,0.31604797]
[1759537680973,0.11885801,122210.0,122200.0,0.31604797]
[1759537681207,0.1393146,122210.0,122200.0,0.31604797]
[1759537681432,0.1362146,122210.0,122200.0,0.31604797]
[1759537681674,0.1341346,122210.0,122200.0,0.31604797]
[1759537682829,0.1362146,122210.0,122200.0,0.31604797]
[1759537683309,0.1341346,122210.0,122200.0,0.31604797]
[1759537683544,0.11367801,122210.0,122200.0,0.31604797]
[1759537684414,0.05101254,122210.0,122200.0,0.47971409]
[1759537684628,0.03055595,122210.0,122200.0,0.31604797]
[1759537685255,0.03055595,122210.0,122200.0,0.47971409]
[1759537685483,0.006,122210.0,122200.0,0.47971409]
[1759537685709,0.006,122210.0,122200.0,0.50672625]
[1759537686355,0.003,122210.0,122200.0,0.50672625]
[1759537686570,0.19690695,122230.0,122210.0,0.1636458]
[1759537686571,0.02509945,122230.0,122210.0,0.1636458]
[1759537686830,0.20917864,122230.0,122220.0,0.39427933]
[1759537687048,0.1887254,122230.0,122220.0,0.39427933]
[1759537687472,0.1908054,122230.0,122220.0,0.39427933]
[1759537687690,0.02717945,122230.0,122220.0,0.39427933]
[1759537687906,0.21425864,122230.0,122220.0,0.39427933]
[1759537688159,0.19129678,122230.0,122220.0,0.39427933]
[1759537688607,0.19529678,122230.0,122220.0,0.39427933]
[1759537688857,0.19838678,122230.0,122220.0,0.39427933]
[1759537689728,0.20438678,122230.0,122220.0,0.39427933]
[1759537689944,0.20438678,122230.0,122220.0,0.23064]
[1759537691328,0.16363933,122220.0,122210.0,0.50404977]
[1759537691540,0.16363933,122220.0,122210.0,0.81968977]
[1759537691985,0.20230678,122230.0,122210.0,0.81968977]
[1759537692427,0.16363933,122220.0,122210.0,0.16384977]
[1759537692625,0.16363933,122220.0,122210.0,0.81968977]
[1759537693042,0.16963933,122220.0,122210.0,0.81968977]
[1759537693716,0.16963933,122220.0,122210.0,0.16384977]
[1759537693938,0.16963933,122220.0,122210.0,0.52347979]
[1759537694162,0.16963933,122220.0,122210.0,0.20783979]
[1759537694381,0.16963933,122220.0,122210.0,0.52347979]
[1759537694796,0.16963933,122220.0,122210.0,0.35983399]
[1759537694798,0.16963933,122220.0,122210.0,0.04419399]
[1759537694950,0.16963933,122220.0,122210.0,0.35983399]
[1759537695356,0.17480933,122220.0,122210.0,0.27479399]
[1759537695572,0.17480933,122220.0,122210.0,0.31584397]
[1759537696810,0.17480933,122220.0,122210.0,0.00020397]
[1759537697014,0.17480933,122220.0,122210.0,0.31580397]
[1759537697656,0.17480933,122220.0,122210.0,0.00020397]
[1759537697862,0.17480933,122220.0,122210.0,0.31580397]
[1759537698068,0.17480933,122220.0,122210.0,0.00020397]
[1759537698275,0.17480933,122220.0,122210.0,0.23076397]
[1759537698485,0.17480933,122220.0,122210.0,0.31580397]
[1759537700378,0.17480933,122220.0,122210.0,0.35979399]
[1759537701586,0.17480933,122220.0,122210.0,0.04419399]
[1759537701730,0.17480933,122220.0,122210.0,0.35979399]
[1759537706408,0.17480933,122220.0,122210.0,0.35975399]
[1759537715816,0.17480933,122220.0,122210.0,0.35971399]
[1759537716515,0.17480933,122220.0,122210.0,0.04419399]
[1759537716790,0.25793139,122220.0,122210.0,0.04419399]
[1759537717174,0.28248403,122220.0,122210.0,0.35971399]
[1759537717612,0.28248403,122220.0,122210.0,0.04419399]
[1759537717849,0.28248403,122220.0,122210.0,0.08524397]
[1759537717982,0.28248403,122220.0,122210.0,0.17832397]
[1759537718205,0.28248403,122220.0,122210.0,0.31576397]
[1759537719013,0.28248403,122220.0,122210.0,0.00020397]
[1759537719233,0.28248403,122220.0,122210.0,0.31576397]
[1759537719429,0.28248403,122220.0,122210.0,0.00020397]
[1759537719670,0.63012412,122220.0,122210.0,0.08524397]
[1759537719947,0.63012412,122220.0,122210.0,0.12156397]
[1759537720759,0.62248403,122220.0,122210.0,0.12156397]
[1759537721860,0.62248403,122220.0,122210.0,0.08524397]
[1759537722076,1.05907172,122220.0,122210.0,0.00020397]
[1759537722202,1.05143803,122220.0,122210.0,0.08640397]
[1759537722418,1.08922098,122220.0,122210.0,0.00020397]
[1759537722610,1.08922098,122220.0,122210.0,0.15768397]
[1759537722856,1.08922098,122220.0,122210.0,0.13064397]
[1759537723247,1.17343505,122220.0,122210.0,0.10836397]
[1759537723667,1.17343505,122220.0,122210.0,0.00020397]
[1759537723902,1.17343505,122220.0,122210.0,0.15940397]
[1759537724782,1.17343505,122220.0,122210.0,0.00020397]
[1759537724973,1.23616809,122220.0,122210.0,0.19992397]
[1759537727432,1.23615671,122220.0,122210.0,0.19992397]
[1759537729484,1.32217671,122220.0,122210.0,0.19992397]
[1759537729791,1.23615671,122220.0,122210.0,0.19992397]
[1759537731303,0.80720271,122220.0,122210.0,0.19992397]
[1759537731501,0.80719852,122220.0,122210.0,0.19992397]
[1759537731751,1.22853704,122220.0,122210.0,0.19992397]
[1759537732393,1.23615213,122220.0,122210.0,0.19992397]
[1759537733130,1.15193806,122220.0,122210.0,0.19992397]
[1759537736427,0.72298476,122220.0,122210.0,0.19992397]
[1759537736696,0.71536897,122220.0,122210.0,0.19992397]
[1759537738244,0.72298651,122220.0,122210.0,0.19992397]
[1759537739843,0.72298651,122220.0,122210.0,0.00020397]
[1759537740736,0.72298841,122220.0,122210.0,0.00020397]
[1759537740879,0.69283651,122220.0,122210.0,0.00020397]
[1759537741098,0.68521707,122220.0,122210.0,0.00020397]
[1759537741316,0.69283784,122220.0,122210.0,0.31588397]
[1759537741738,0.69283784,122220.0,122210.0,0.23084397]
[1759537742049,0.6301048,122220.0,122210.0,0.31588397]
[1759537742913,0.6301048,122220.0,122210.0,0.00020397]
[1759537743116,0.6301048,122220.0,122210.0,0.31588397]
[1759537746979,0.6301048,122220.0,122210.0,0.00020397]